bitfinex/quotes_BTCUSD_20251010
["timestamp","ask_amount","ask_price","bid_price","bid_amount"]
[1760068539275,1.01629803,121270.0,121260.0,0.00199667]
[1760068539943,0.18032561,121270.0,121260.0,0.00199667]
[1760068540184,1.12609803,121270.0,121260.0,0.00199667]
[1760068540422,1.37722789,121270.0,121260.0,0.00199667]
[1760068540657,1.38558936,121270.0,121260.0,0.00199667]
[1760068541092,0.86881694,121270.0,121260.0,0.00199667]
[1760068541357,1.38558936,121270.0,121260.0,0.00199667]
[1760068542079,0.72318936,121270.0,121260.0,0.00199667]
[1760068542311,1.38558936,121270.0,121260.0,0.00199667]
[1760068542542,0.72318936,121270.0,121260.0,0.00199667]
[1760068542776,1.38558936,121270.0,121260.0,0.00199667]
[1760068543012,0.20641694,121270.0,121260.0,0.00199667]
[1760068543257,1.1344595,121270.0,121260.0,0.00199667]
[1760068543496,1.38554936,121270.0,121260.0,0.00199667]
[1760068543957,0.72318936,121270.0,121260.0,0.00199667]
[1760068544186,1.38562936,121270.0,121260.0,0.00199667]
[1760068544438,0.72318936,121270.0,121260.0,0.00199667]
[1760068544676,0.86881694,121270.0,121260.0,0.00199667]
[1760068544899,1.38558936,121270.0,121260.0,0.00199667]
[1760068545193,0.72318936,121270.0,121260.0,0.00199667]
[1760068545402,0.61772708,121270.0,121260.0,0.02099667]
[1760068545611,1.12613803,121270.0,121260.0,0.02099667]
[1760068545858,1.35949803,121270.0,121260.0,0.02099667]
[1760068546062,0.84272561,121270.0,121260.0,0.02099667]
[1760068546280,1.35949803,121270.0,121260.0,0.02099667]
[1760068546495,1.35949803,121270.0,121250.0,0.0305519]
[1760068546496,0.16493485,121260.0,121250.0,0.0305519]
[1760068546710,0.69711163,121260.0,121250.0,0.0305519]
[1760068546928,0.41373921,121260.0,121250.0,0.0305519]
[1760068547345,0.93051163,121260.0,121250.0,0.0305519]
[1760068547971,0.69711163,121260.0,121250.0,0.0305519]
[1760068548219,0.93047163,121260.0,121250.0,0.0305519]
[1760068549266,0.99358128,121260.0,121250.0,0.0305519]
[1760068549724,1.25311228,121260.0,121250.0,0.0305519]
[1760068551220,1.01975228,121260.0,121250.0,0.0305519]
[1760068551444,1.25315228,121260.0,121250.0,0.0004]
[1760068551662,1.42564331,121260.0,121250.0,1e-08]
[1760068551865,1.65904331,121260.0,121250.0,1e-08]
[1760068552103,2.00674303,121260.0,121250.0,1e-08]
[1760068552319,1.23043778,121260.0,121250.0,1e-08]
[1760068553389,1.25259873,121260.0,121250.0,1e-08]
[1760068553590,1.25359873,121260.0,121250.0,1e-08]
[1760068553832,0.86842526,121260.0,121250.0,1e-08]
[1760068554251,0.63502526,121260.0,121250.0,1e-08]
[1760068554457,1.29750526,121260.0,121250.0,1e-08]
[1760068554691,1.68577697,121260.0,121250.0,1e-08]
[1760068554901,1.29762526,121260.0,121250.0,1e-08]
[1760068556025,1.68577697,121260.0,121250.0,1e-08]
[1760068556471,0.97830526,121260.0,121250.0,1e-08]
[1760068556706,0.16494845,121250.0,121240.0,0.00860001]
[1760068556922,1.23110166,121250.0,121240.0,0.03875191]
[1760068557142,1.24884098,121250.0,121240.0,0.05773191]
[1760068558031,0.86068927,121250.0,121240.0,0.05773191]
[1760068558249,1.24884098,121250.0,121240.0,0.05773191]
[1760068558906,0.86068927,121250.0,121240.0,0.05773191]
[1760068559103,0.58624098,121250.0,121240.0,0.05773191]
[1760068559327,1.01532098,121250.0,121240.0,0.05773191]
[1760068559551,0.19808927,121250.0,121240.0,0.08491191]
[1760068559789,0.49970995,121250.0,121240.0,0.08491191]
[1760068560018,0.49970995,121250.0,121240.0,0.10968688]
[1760068560244,0.26614995,121250.0,121240.0,0.10968688]
[1760068560704,0.49970995,121250.0,121240.0,0.10968688]
[1760068560919,0.88786166,121250.0,121240.0,0.10968688]
[1760068561192,0.65430166,121250.0,121240.0,0.08250688]
[1760068561413,0.65430166,121250.0,121240.0,0.07390687]
[1760068561657,0.49970995,121250.0,121240.0,0.07390687]
[1760068561911,0.49970995,121250.0,121240.0,0.08750687]
[1760068562139,0.88786166,121250.0,121240.0,0.08750687]
[1760068562385,0.88786166,121250.0,121240.0,0.08802244]
[1760068562865,0.88786166,121250.0,121240.0,0.05544244]
[1760068563088,1.29379788,121250.0,121240.0,0.03066747]
[1760068563311,0.28393446,121250.0,121240.0,0.03066747]
[1760068563535,0.88786166,121250.0,121240.0,0.03066747]
[1760068563834,0.90568617,121250.0,121240.0,0.03066747]
[1760068564298,0.51753446,121250.0,121240.0,0.03066747]
[1760068564525,0.26614995,121250.0,121240.0,0.04921747]
[1760068564743,0.88786166,121250.0,121240.0,0.06333747]
[1760068564993,0.65430166,121250.0,121240.0,0.09316747]
[1760068565222,0.88786166,121250.0,121240.0,0.09316747]
[1760068565679,0.88786166,121250.0,121240.0,0.03066747]
[1760068565897,0.90564987,121250.0,121240.0,0.03066747]
[1760068566346,0.88786166,121250.0,121240.0,0.03066747]
[1760068566567,0.49970995,121250.0,121240.0,0.03066747]
[1760068567006,0.88786166,121250.0,121240.0,0.03066747]
[1760068567920,0.65430166,121250.0,121240.0,0.03066747]
[1760068568147,0.88786166,121250.0,121240.0,0.03066747]
[1760068568379,0.88782166,121250.0,121240.0,0.03066747]
[1760068568600,0.49966995,121250.0,121240.0,0.03066747]
[1760068568846,1.04245337,121250.0,121240.0,0.03066747]
[1760068569047,0.88782166,121250.0,121240.0,0.03066747]
[1760068569679,0.49966995,121250.0,121240.0,0.03066747]
[1760068569887,0.88782166,121250.0,121240.0,0.03066747]
[1760068570931,1.04245337,121250.0,121240.0,0.03066747]
[1760068571398,1.27597337,121250.0,121240.0,0.03066747]
[1760068571586,0.49966995,121250.0,121240.0,0.03066747]
[1760068571798,0.26614995,121250.0,121240.0,0.03066747]
[1760068572009,0.88778166,121250.0,121240.0,0.03066747]
[1760068572457,1.27593337,121250.0,121240.0,0.03066747]
[1760068574559,1.04245337,121250.0,121240.0,0.03066747]
[1760068574766,1.27593337,121250.0,121240.0,0.03066747]
[1760068575189,1.04245337,121250.0,121240.0,0.03066747]
[1760068575403,1.27593337,121250.0,121240.0,0.03066747]
[1760068576231,0.56850166,121250.0,121240.0,0.03066747]
[1760068576584,0.99758166,121250.0,121240.0,0.04921747]
[1760068576786,1.23102166,121250.0,121240.0,0.04921747]
[1760068576989,1.14522166,121250.0,121240.0,0.09316747]
[1760068577143,0.98218016,121250.0,121240.0,0.09316747]
[1760068577814,1.21562016,121250.0,121240.0,0.09316747]
[1760068578030,0.16494845,121250.0,121240.0,0.09316747]
[1760068578234,0.25074845,121250.0,121240.0,0.48131918]
[1760068578438,0.25074845,121250.0,121240.0,0.64628123]
[1760068578439,0.31924,121250.0,121240.0,0.64628123]
[1760068578638,0.48418845,121250.0,121240.0,0.64628123]
[1760068578764,0.0858,121250.0,121240.0,0.64628123]
[1760068579010,0.31928,121250.0,121240.0,0.64628123]
[1760068579430,0.23348,121250.0,121240.0,0.64628123]
[1760068579649,0.25074845,121250.0,121240.0,0.64628123]
[1760068579862,0.0858,121250.0,121240.0,0.64628123]
[1760068580062,0.48422845,121250.0,121240.0,0.64628123]
[1760068580293,0.48422845,121250.0,121240.0,1.03443294]
[1760068580501,0.48422845,121250.0,121240.0,0.64628123]
[1760068581161,0.48422845,121250.0,121240.0,0.25812952]
[1760068581366,0.48422845,121250.0,121240.0,0.09316747]
[1760068582846,0.48422845,121250.0,121240.0,0.10966367]
[1760068583257,0.48422845,121250.0,121240.0,0.03066747]
[1760068583474,1.02705187,121250.0,121240.0,0.03066747]
[1760068583696,1.26053187,121250.0,121240.0,0.03066747]
[1760068583914,1.02705187,121250.0,121240.0,0.00051557]
[1760068584164,0.48430845,121250.0,121240.0,0.00051557]
[1760068584404,0.82430845,121250.0,121240.0,0.00051557]
[1760068584628,1.36705187,121250.0,121240.0,0.00051557]
[1760068584851,1.61612739,121250.0,121240.0,0.00051557]
[1760068585286,1.38248739,121250.0,121240.0,0.00051557]
[1760068585512,1.61612739,121250.0,121240.0,0.00051557]
[1760068586148,1.60069187,121250.0,121240.0,0.00051557]
[1760068586364,1.36705187,121250.0,121240.0,0.00051557]
[1760068586580,0.97890016,121250.0,121240.0,0.00051557]
[1760068587017,1.21254016,121250.0,121240.0,0.00051557]
[1760068587651,0.59074845,121250.0,121240.0,0.00051557]
[1760068587864,1.21254016,121250.0,121240.0,0.00051557]
[1760068588497,0.87438845,121250.0,121240.0,0.00051557]
[1760068588732,1.26254016,121250.0,121240.0,0.00051557]
[1760068589182,1.65069187,121250.0,121240.0,0.00051557]
[1760068589413,0.87438845,121250.0,121240.0,0.00051557]
[1760068589624,1.21762845,121250.0,121240.0,0.00051557]
[1760068589845,1.99393187,121250.0,121240.0,0.00051557]
[1760068590499,0.94310016,121250.0,121240.0,0.00051557]
[1760068590726,1.60578016,121250.0,121240.0,0.00051557]
[1760068591747,0.94310016,121250.0,121240.0,0.00051557]
[1760068591993,0.21494845,121250.0,121240.0,0.02024557]
[1760068592198,0.60310016,121250.0,121240.0,0.09156747]
[1760068592403,1.03222016,121250.0,121240.0,0.09156747]
[1760068592610,1.03222016,121250.0,121240.0,0.06412747]
[1760068592819,1.26586016,121250.0,121240.0,0.06412747]
[1760068593317,1.26582016,121250.0,121240.0,0.06412747]
[1760068595542,0.87766845,121250.0,121240.0,0.06412747]
[1760068595735,1.26582016,121250.0,121240.0,0.09109747]
[1760068597086,1.26582016,121250.0,121240.0,0.06412747]
[1760068597285,1.03222016,121250.0,121240.0,0.03066747]
[1760068597500,1.65393187,121250.0,121240.0,0.03066747]
[1760068599844,0.87762845,121250.0,121240.0,0.03066747]
[1760068600060,1.65393187,121250.0,121240.0,0.03066747]
[1760068600278,0.87762845,121250.0,121240.0,0.03066747]
[1760068600492,1.26578016,121250.0,121240.0,0.03066747]
[1760068603014,0.87762845,121250.0,121240.0,0.03066747]
[1760068603235,1.26578016,121250.0,121240.0,0.03066747]
[1760068605063,0.87762845,121250.0,121240.0,0.03066747]
[1760068605285,1.26570016,121250.0,121240.0,0.03066747]
[1760068605736,0.60310016,121250.0,121240.0,0.04976747]
[1760068606220,0.68890016,121250.0,121240.0,0.09143747]
[1760068606456,0.92238016,121250.0,121240.0,0.09143747]
[1760068606679,0.92234016,121250.0,121240.0,0.09143747]
[1760068606901,0.60310016,121250.0,121240.0,0.09143747]
[1760068607126,0.92234016,121250.0,121240.0,0.09143747]
[1760068608215,0.30074845,121250.0,121240.0,0.25639952]
[1760068608419,0.53418845,121250.0,121240.0,0.47958918]
[1760068608895,0.30074845,121250.0,121240.0,0.09143747]
[1760068609099,0.53422845,121250.0,121240.0,0.09143747]
[1760068609310,0.30074845,121250.0,121240.0,0.09143747]
[1760068609512,0.53422845,121250.0,121240.0,0.10793367]
[1760068611047,0.21494845,121250.0,121240.0,0.10793367]
[1760068611290,0.53418845,121250.0,121240.0,0.10793367]
[1760068611710,0.30074845,121250.0,121240.0,0.09143747]
[1760068611936,0.53418845,121250.0,121240.0,0.09143747]
[1760068612785,0.53418845,121250.0,121240.0,0.25639952]
[1760068613195,0.53418845,121250.0,121240.0,0.7737741]
[1760068613646,0.21494845,121250.0,121240.0,0.7737741]
[1760068613871,0.36924,121250.0,121240.0,0.7737741]
[1760068614720,0.31924,121250.0,121240.0,0.7737741]
[1760068614941,0.16494845,121250.0,121240.0,0.7737741]
[1760068615228,0.48414845,121250.0,121240.0,0.7737741]
[1760068615458,0.25074845,121250.0,121240.0,0.09101747]
[1760068615670,0.48414845,121250.0,121240.0,0.09101747]
[1760068617585,0.25074845,121250.0,121240.0,0.10751367]
[1760068617807,0.28272045,121250.0,121240.0,0.10751367]
[1760068618020,0.4476689,121250.0,121240.0,0.27247572]
[1760068618274,0.04932045,121250.0,121240.0,0.7733541]
[1760068618747,0.17454479,121270.0,121260.0,0.0301519]
[1760068618962,0.26034479,121270.0,121260.0,0.0629119]
[1760068619178,0.77771937,121270.0,121260.0,0.0301519]
[1760068619393,1.01111937,121270.0,121260.0,0.0301519]
[1760068619614,0.77771937,121270.0,121260.0,0.0301519]
[1760068619822,0.77771937,121270.0,121240.0,0.04176557]
[1760068619823,0.16494845,121250.0,121240.0,0.04176557]
[1760068620041,0.16494845,121250.0,121240.0,0.06484747]
[1760068620286,0.39838845,121250.0,121240.0,0.09139747]
[1760068620715,0.39838845,121250.0,121240.0,0.06484747]
[1760068621603,0.39838845,121250.0,121240.0,0.09139747]
[1760068622250,0.16494845,121250.0,121240.0,0.09139747]
[1760068622465,0.39834845,121250.0,121240.0,0.09139747]
[1760068624032,0.91572303,121250.0,121240.0,0.03066747]
[1760068624253,0.68232303,121250.0,121240.0,0.03066747]
[1760068624476,0.68232303,121250.0,121240.0,0.00051557]
[1760068624477,0.91576303,121250.0,121240.0,0.00051557]
[1760068625178,1.25576303,121250.0,121240.0,0.00051557]
[1760068626504,0.73838845,121250.0,121240.0,0.00051557]
[1760068626950,1.25576303,121250.0,121240.0,0.00051557]
[1760068627163,1.02232303,121250.0,121240.0,0.00051557]
[1760068627375,1.25580303,121250.0,121240.0,0.00051557]
[1760068629517,0.68232303,121250.0,121240.0,0.00051557]
[1760068629738,0.16494845,121250.0,121240.0,0.00051557]
[1760068629947,1.34488303,121250.0,121240.0,0.00051557]
[1760068631680,1.11140303,121250.0,121240.0,0.00051557]
[1760068631913,1.34484303,121250.0,121240.0,0.00051557]
[1760068632342,1.11140303,121250.0,121240.0,0.00051557]
[1760068632555,1.34484303,121250.0,121240.0,0.00051557]
[1760068635570,0.82746845,121250.0,121240.0,0.00051557]
[1760068635841,1.34484303,121250.0,121240.0,0.00051557]
[1760068637599,0.59402845,121250.0,121240.0,0.00051557]
[1760068637813,1.11140303,121250.0,121240.0,0.00051557]
[1760068638237,1.34480303,121250.0,121240.0,0.00051557]
[1760068638456,1.11140303,121250.0,121240.0,0.00051557]
[1760068638875,1.34480303,121250.0,121240.0,0.00051557]
[1760068639300,1.11140303,121250.0,121240.0,0.00051557]
[1760068639517,1.34476303,121250.0,121240.0,0.00051557]
[1760068641067,1.11140303,121250.0,121240.0,0.00051557]
[1760068641278,1.34476303,121250.0,121240.0,0.00051557]
[1760068643150,1.96877761,121250.0,121240.0,1e-08]
[1760068643372,2.01692035,121250.0,121240.0,1e-08]
[1760068643583,2.32530451,121250.0,121240.0,1e-08]
[1760068644656,2.32630451,121250.0,121240.0,1e-08]
[1760068645726,2.09270451,121250.0,121240.0,1e-08]
[1760068645933,2.11047044,121250.0,121240.0,1e-08]
[1760068646179,2.34407044,121250.0,121240.0,1e-08]
[1760068646586,2.34507044,121250.0,121240.0,1e-08]
[1760068646810,2.34407044,121250.0,121240.0,1e-08]
[1760068647027,2.34307044,121250.0,121240.0,1e-08]
[1760068647253,2.34407044,121250.0,121240.0,1e-08]
[1760068647482,2.34507044,121250.0,121240.0,1e-08]
[1760068648091,2.11147044,121250.0,121240.0,1e-08]
[1760068648542,2.3686765,121250.0,121240.0,1e-08]
[1760068648795,0.18998926,121220.0,121210.0,1e-08]
[1760068648998,0.81928483,121220.0,121210.0,8.341e-05]
[1760068649217,1.05340483,121220.0,121210.0,8.341e-05]
[1760068649438,1.47768484,121220.0,121210.0,0.00163057]
[1760068649660,1.49142484,121220.0,121210.0,0.00163057]
[1760068649887,1.72554484,121220.0,121210.0,0.00163057]
[1760068650328,1.06222484,121220.0,121210.0,0.00163057]
[1760068650548,1.48371126,121220.0,121210.0,0.00163057]
[1760068650756,1.13655936,121220.0,121210.0,0.00163057]
[1760068650984,1.35701936,121220.0,121210.0,0.00163057]
[1760068651499,1.18552701,121220.0,121210.0,0.00163057]
[1760068651715,1.42072701,121220.0,121210.0,0.00163057]
[1760068652154,0.23995243,121220.0,121210.0,0.00163057]
[1760068652380,1.42072701,121220.0,121210.0,0.00163057]
[1760068653684,0.23995243,121220.0,121210.0,0.00163057]
[1760068653902,1.42068701,121220.0,121210.0,0.00163057]
[1760068654361,1.18652701,121220.0,121210.0,0.00163057]
[1760068654575,0.59618927,121220.0,121210.0,0.09352247]
[1760068654795,0.83034927,121220.0,121210.0,0.25852535]
[1760068655045,0.83034927,121220.0,121210.0,0.09352247]
[1760068655267,0.002,121220.0,121210.0,0.25852535]
[1760068655506,0.48498927,121220.0,121210.0,0.06489247]
[1760068655727,0.48498927,121220.0,121210.0,0.09352247]
[1760068656169,0.48498927,121220.0,121210.0,0.06489247]
[1760068656853,1.00236385,121220.0,121210.0,0.06489247]
[1760068657068,0.76820385,121220.0,121210.0,0.03178247]
[1760068657287,1.00236385,121220.0,121210.0,0.03178247]
[1760068657724,0.76820385,121220.0,121210.0,0.03178247]
[1760068657944,1.00236385,121220.0,121210.0,0.03178247]
[1760068661038,0.16498927,121220.0,121210.0,0.09352247]
[1760068661266,1.00232385,121220.0,121210.0,0.06489247]
[1760068661538,0.76820385,121220.0,121210.0,0.06489247]
[1760068661776,0.48494927,121220.0,121210.0,0.04623247]
[1760068662017,1.366127,121220.0,121210.0,0.00163057]
[1760068662245,1.1561154,121220.0,121210.0,0.00163057]
[1760068662468,1.3909154,121220.0,121210.0,0.00163057]
[1760068663403,1.21651775,121220.0,121210.0,0.00163057]
[1760068663629,1.50231775,121220.0,121210.0,0.00163057]
[1760068664269,1.45231775,121220.0,121210.0,0.00163057]
[1760068668192,1.4523234,121220.0,121210.0,0.00163057]
[1760068668428,0.61430882,121220.0,121210.0,0.00163057]
[1760068668658,1.7956034,121220.0,121210.0,0.00163057]
[1760068669111,1.8456034,121220.0,121210.0,0.00163057]
[1760068670424,1.86338129,121220.0,121210.0,0.00163057]
[1760068670871,1.480815,121220.0,121210.0,0.03468057]
[1760068671300,0.7937662,121220.0,121210.0,0.03468057]
[1760068671529,1.48079955,121220.0,121210.0,0.03468057]
[1760068671730,0.96342497,121220.0,121210.0,0.03468057]
[1760068671936,1.48079955,121220.0,121210.0,0.03468057]
[1760068672829,0.23914262,121220.0,121210.0,0.03468057]
[1760068673046,1.4203972,121220.0,121210.0,0.06275057]
[1760068673271,1.4203972,121220.0,121210.0,0.03468057]
[1760068673727,1.67971504,121220.0,121210.0,0.03468057]
[1760068674209,0.90302262,121220.0,121210.0,0.03468057]
[1760068674426,1.67971504,121220.0,121210.0,0.03468057]
[1760068674643,0.90302262,121220.0,121210.0,0.03468057]
[1760068674854,1.67971504,121220.0,121210.0,0.03468057]
[1760068675078,1.05672883,121220.0,121210.0,0.06275057]
[1760068675295,1.27589326,121220.0,121210.0,0.06275057]
[1760068675724,1.26817548,121220.0,121210.0,0.06275057]
[1760068676589,0.87982927,121220.0,121210.0,0.06275057]
[1760068676824,0.53542927,121220.0,121210.0,0.09290247]
[1760068677054,0.92377548,121220.0,121210.0,0.09290247]
[1760068678590,0.68917548,121220.0,121210.0,0.09290247]
[1760068678826,0.92377548,121220.0,121210.0,0.09290247]
[1760068679051,0.92377548,121220.0,121210.0,0.06483247]
[1760068679265,1.31212169,121220.0,121210.0,0.06483247]
[1760068680387,1.31212169,121220.0,121210.0,0.09290247]
[1760068680846,0.53542927,121220.0,121210.0,0.09290247]
[1760068681059,0.53542927,121220.0,121210.0,0.03178247]
[1760068681060,1.07752169,121220.0,121210.0,0.03178247]
[1760068681278,1.31204169,121220.0,121210.0,0.03178247]
[1760068681731,1.31200169,121220.0,121210.0,0.03178247]
[1760068681993,1.26200169,121220.0,121210.0,0.03178247]
[1760068682198,1.26200169,121220.0,121210.0,0.05056247]
[1760068682630,0.48530927,121220.0,121210.0,0.06483247]
[1760068682844,1.26200169,121220.0,121210.0,0.06483247]
[1760068684807,0.48530927,121220.0,121210.0,0.06483247]
[1760068685019,1.26200169,121220.0,121210.0,0.06483247]
[1760068686102,1.02752169,121220.0,121210.0,0.06483247]
[1760068686308,1.6502679,121220.0,121210.0,0.00163057]
[1760068686531,1.26192169,121220.0,121210.0,0.00163057]
[1760068687921,1.26292169,121220.0,121210.0,0.00163057]
[1760068688154,0.16598927,121220.0,121210.0,0.00163057]
[1760068688380,1.37188169,121220.0,121210.0,0.03230057]
[1760068688609,0.16598927,121220.0,121210.0,0.03230057]
[1760068688839,1.60624169,121220.0,121210.0,0.05829057]
[1760068689529,1.60624169,121220.0,121210.0,0.03230057]
[1760068690019,1.37188169,121220.0,121210.0,0.03230057]
[1760068690233,1.60624169,121220.0,121210.0,0.03230057]
[1760068690447,0.94268169,121220.0,121210.0,0.03230057]
[1760068690661,1.02852169,121220.0,121210.0,0.03230057]
[1760068690872,1.26284169,121220.0,121210.0,0.03230057]
[1760068691083,1.02852169,121220.0,121210.0,0.03230057]
[1760068691295,1.26284169,121220.0,121210.0,0.03230057]
[1760068691728,1.31284169,121220.0,121210.0,0.03230057]
[1760068691940,1.07852169,121220.0,121210.0,0.03230057]
[1760068692837,1.31280169,121220.0,121210.0,0.03230057]
[1760068693257,1.07852169,121220.0,121210.0,0.03230057]
[1760068693478,1.31280169,121220.0,121210.0,0.03230057]
[1760068693722,1.07852169,121220.0,121210.0,0.03230057]
[1760068693907,1.07852169,121220.0,121210.0,0.01473057]
[1760068693908,1.31280169,121220.0,121210.0,0.01473057]
[1760068694375,1.31280169,121220.0,121210.0,0.00163057]
[1760068696292,1.07852169,121220.0,121210.0,0.00163057]
[1760068696505,1.31276169,121220.0,121210.0,0.00163057]
[1760068696964,1.31272169,121220.0,121210.0,0.00163057]
[1760068697722,1.07852169,121220.0,121210.0,0.00163057]
[1760068697938,1.31272169,121220.0,121210.0,0.00163057]
[1760068698154,1.31272169,121220.0,121210.0,0.01920057]
[1760068698364,1.65608169,121220.0,121210.0,0.01920057]
[1760068699647,0.45014927,121220.0,121210.0,0.01920057]
[1760068699870,1.65604169,121220.0,121210.0,0.01920057]
[1760068700330,1.33604169,121220.0,121210.0,0.01920057]
[1760068700564,1.65604169,121220.0,121210.0,0.01920057]
[1760068701623,1.65604169,121220.0,121210.0,0.03230057]
[1760068704016,1.42188169,121220.0,121210.0,0.03230057]
[1760068704228,1.65600169,121220.0,121210.0,0.03230057]
[1760068704466,1.31260169,121220.0,121210.0,0.03230057]
[1760068704891,1.07852169,121220.0,121210.0,0.03230057]
[1760068705105,1.31260169,121220.0,121210.0,0.03230057]
[1760068707709,1.31260169,121220.0,121210.0,0.00163057]
[1760068709896,0.99268169,121220.0,121210.0,0.01920057]
[1760068710105,1.31252169,121220.0,121210.0,0.01920057]
[1760068710963,1.31252169,121220.0,121210.0,0.00163057]
[1760068715029,1.31248169,121220.0,121210.0,0.00163057]
[1760068715542,1.31248169,121220.0,121210.0,0.01921057]
[1760068716069,1.31244169,121220.0,121210.0,0.03290057]
[1760068717571,1.31240169,121220.0,121210.0,0.00163057]
[1760068719103,1.49007499,121220.0,121210.0,0.00163057]
[1760068719318,1.72395499,121220.0,121210.0,0.00163057]
[1760068719760,1.49007499,121220.0,121210.0,0.00163057]
[1760068719989,1.72399499,121220.0,121210.0,0.00163057]
[1760068720200,1.78469428,121220.0,121210.0,0.00163057]
[1760068721085,1.78473428,121220.0,121210.0,0.00163057]
[1760068721521,1.78469428,121220.0,121210.0,0.00163057]
[1760068722186,1.78369428,121220.0,121210.0,0.00163057]
[1760068722618,1.78469428,121220.0,121210.0,0.00163057]
[1760068723067,1.46493428,121220.0,121210.0,0.00163057]
[1760068723301,2.12809428,121220.0,121210.0,0.00163057]
[1760068723720,1.89417428,121220.0,121210.0,0.00163057]
[1760068723938,2.12805428,121220.0,121210.0,0.00163057]
[1760068724589,0.29989565,121220.0,121210.0,0.00163057]
[1760068724800,1.89417428,121220.0,121210.0,0.00163057]
[1760068725038,1.44946274,121220.0,121210.0,0.00163057]
[1760068725248,1.894157,121220.0,121210.0,0.00163057]
[1760068725457,2.128037,121220.0,121210.0,0.00163057]
[1760068727245,1.894157,121220.0,121210.0,0.00163057]
[1760068727469,2.128037,121220.0,121210.0,0.00163057]
[1760068728386,2.11258274,121220.0,121210.0,0.00163057]
[1760068729300,2.11254274,121220.0,121210.0,0.00163057]
[1760068729980,0.28442411,121220.0,121210.0,0.00163057]
[1760068730206,1.72419653,121220.0,121210.0,0.00163057]
[1760068730906,1.49035653,121220.0,121210.0,0.00163057]
[1760068731172,1.72415653,121220.0,121210.0,0.00163057]
[1760068731393,1.48262098,121220.0,121210.0,0.00163057]
[1760068731611,1.71642098,121220.0,121210.0,0.00163057]
[1760068731834,0.27668856,121220.0,121210.0,0.00163057]
[1760068732055,0.70592856,121220.0,121210.0,0.01546057]
[1760068732304,1.71646098,121220.0,121210.0,0.00163057]
[1760068733212,1.48262098,121220.0,121210.0,0.00163057]
[1760068733433,1.49034562,121220.0,121210.0,0.00163057]
[1760068733655,1.45766334,121220.0,121210.0,0.00163057]
[1760068734490,1.46538847,121220.0,121210.0,0.00163057]
[1760068734879,1.23154847,121220.0,121210.0,0.00163057]
[1760068735114,1.46538847,121220.0,121210.0,0.00163057]
[1760068736821,0.94745369,121220.0,121210.0,0.00163057]
[1760068737032,1.23154847,121220.0,121210.0,0.00163057]
[1760068737242,1.46534847,121220.0,121210.0,0.00163057]
[1760068738083,1.23154847,121220.0,121210.0,0.00163057]
[1760068738294,1.46534847,121220.0,121210.0,0.00163057]
[1760068739588,1.48080237,121220.0,121210.0,0.00163057]
[1760068739830,1.24700237,121220.0,121210.0,0.00163057]
[1760068740039,1.82084237,121220.0,121210.0,0.00163057]
[1760068740252,1.30294759,121220.0,121210.0,0.00163057]
[1760068740479,1.82084237,121220.0,121210.0,0.00163057]
[1760068743014,1.79766334,121220.0,121210.0,0.00163057]
[1760068744524,1.79666334,121220.0,121210.0,0.00163057]
[1760068744922,1.82145067,121220.0,121210.0,0.00163057]
[1760068745130,1.8446357,121220.0,121210.0,0.00163057]
[1760068745333,1.84463639,121220.0,121210.0,0.00163057]
[1760068746990,1.84563639,121220.0,121210.0,0.00163057]
[1760068747289,1.32874161,121220.0,121210.0,0.00163057]
[1760068747479,1.84663639,121220.0,121210.0,0.00163057]
[1760068747912,2.36445117,121220.0,121210.0,1e-08]
[1760068748114,2.38225991,121220.0,121210.0,1e-08]
[1760068748316,2.14849991,121220.0,121210.0,1e-08]
[1760068748522,2.38229991,121220.0,121210.0,1e-08]
[1760068748951,2.38225991,121220.0,121210.0,1e-08]
[1760068749344,2.14849991,121220.0,121210.0,1e-08]
[1760068749546,2.38225991,121220.0,121210.0,1e-08]
[1760068750367,2.14849991,121220.0,121210.0,1e-08]
[1760068750596,2.38225991,121220.0,121210.0,1e-08]
[1760068750985,2.14849991,121220.0,121210.0,1e-08]
[1760068751208,2.38225991,121220.0,121210.0,1e-08]
[1760068752339,1.86436513,121220.0,121210.0,1e-08]
[1760068760533,1.63060513,121220.0,121210.0,1e-08]
[1760068760741,1.86424513,121220.0,121210.0,1e-08]
[1760068760968,2.17865181,121220.0,121210.0,1e-08]
[1760068761194,2.4372918,121220.0,121210.0,1e-08]
[1760068761424,2.45956977,121220.0,121210.0,1e-08]
[1760068762069,1.94167499,121220.0,121210.0,1e-08]
[1760068764130,1.94166052,121220.0,121210.0,1e-08]
[1760068764344,1.87882545,121220.0,121210.0,1e-08]
[1760068764971,1.86938255,121220.0,121210.0,1e-08]
[1760068768204,2.38727733,121220.0,121210.0,1e-08]
[1760068768424,1.86938255,121220.0,121210.0,1e-08]
[1760068770642,2.38727733,121220.0,121210.0,1e-08]
[1760068771082,0.50503011,121190.0,121180.0,1e-08]
[1760068771301,1.36557614,121190.0,121180.0,0.00050517]
[1760068772173,1.39036951,121190.0,121180.0,0.00050517]
[1760068772603,1.39038068,121190.0,121180.0,0.00050517]
[1760068772821,1.39138068,121190.0,121180.0,0.00050517]
[1760068773268,1.39137834,121190.0,121180.0,0.00050517]
[1760068773488,1.39137761,121190.0,121180.0,0.00050517]
[1760068774675,0.87348283,121190.0,121180.0,0.00050517]
[1760068774887,1.39137761,121190.0,121180.0,0.00050517]
[1760068775260,1.15773761,121190.0,121180.0,0.00050517]
[1760068775484,1.39137761,121190.0,121180.0,0.00050517]
[1760068775722,1.39137761,121190.0,121180.0,1e-08]
[1760068775966,1.39141761,121190.0,121180.0,1e-08]
[1760068776639,1.44141761,121190.0,121180.0,1e-08]
[1760068776862,0.92352283,121190.0,121180.0,1e-08]
[1760068778007,0.94132496,121190.0,121180.0,1e-08]
[1760068778436,0.92352283,121190.0,121180.0,1e-08]
[1760068779397,0.94131872,121190.0,121180.0,1e-08]
[1760068779858,0.70763872,121190.0,121180.0,1e-08]
[1760068780097,0.94131872,121190.0,121180.0,1e-08]
[1760068781004,0.94131757,121190.0,121180.0,1e-08]
[1760068782798,0.70763757,121190.0,121180.0,1e-08]
[1760068783031,0.94131757,121190.0,121180.0,1e-08]
[1760068785407,0.62179757,121190.0,121180.0,1e-08]
[1760068785621,1.62839757,121190.0,121180.0,1e-08]
[1760068786056,1.39471757,121190.0,121180.0,1e-08]
[1760068786284,1.62839757,121190.0,121180.0,1e-08]
[1760068786740,0.67694946,121190.0,121180.0,1e-08]
[1760068786962,1.68354946,121190.0,121180.0,1e-08]
[1760068788910,1.6835458,121190.0,121180.0,1e-08]
[1760068790010,1.70582377,121190.0,121180.0,1e-08]
[1760068791758,1.70880201,121190.0,121180.0,1e-08]
[1760068791978,0.70320201,121190.0,121180.0,1e-08]
[1760068792188,1.70980201,121190.0,121180.0,1e-08]
[1760068792965,1.70880201,121190.0,121180.0,1e-08]
[1760068793198,1.70980201,121190.0,121180.0,1e-08]
[1760068797166,1.70682377,121190.0,121180.0,1e-08]
[1760068798249,1.73642301,121190.0,121180.0,1e-08]
[1760068798477,1.47314377,121190.0,121180.0,1e-08]
[1760068798701,1.70682377,121190.0,121180.0,1e-08]
[1760068798936,1.73642301,121190.0,121180.0,1e-08]